Cogmind - Beta 9.3 @@@ ROGUE MODE // 2019.12.24 @ 20:04:12 Player: Demise Result: Destroyed by 8R-AWN with 8R-AWN's Boregun Performance ------------- Evolutions (1) 500 Regions Visited (5) 1000 Robots Destroyed (64) 320 Value Destroyed (1196) 1196 Prototype IDs (30) 600 Alien Tech Used (0) 0 Bonus (360) 360 TOTAL SCORE: 3976 Bonus ------- Follower Combat Kills 60 Aligned with FarCom 300 Cogmind --------- Core Integrity 0/400 Matter 109/300 Energy 71/100 System Corruption 8% Temperature Cool (124) Movement Core (650) Ox12 Location -9/Exiles Parts ------- > --- POWER (1) -------- (None) > --- PROPULSION (2) --- (None) > --- UTILITY (4) ------ High-capacity Storage Unit Improved Sensor Array Improved Signal Interpreter Targeting Computer > --- WEAPON (2) ------- Assault Cannon > --- INVENTORY (12) --- Improved Flight Unit Improved Flight Unit Large Battery (300) Medium Matter Pod (100) Medium Matter Pod (100) Terrain Scanner Hacking Suite Axe Peak State ------------ > --- POWER ------------ Improved Ion Engine > --- PROPULSION ------- Improved Flight Unit Improved Flight Unit > --- UTILITY ---------- High-capacity Storage Unit Improved Sensor Array Improved Signal Interpreter Targeting Computer > --- WEAPON ----------- Improved EM Shotgun Improved Assault Rifle > --- INVENTORY -------- Light Treads Armored Wheel Large Battery Medium Matter Pod Medium Matter Pod Terrain Scanner Hacking Suite Improved EM Shotgun Ion Cannon Assault Cannon Grenade Launcher Mining Laser [Rating: 22] Favorites ----------- Power Improved Ion Engine Engine Improved Ion Engine Propulsion Light Treads Treads Light Treads Leg Aluminum Leg Wheel Wheel Flight Unit Improved Flight Unit Utility High-capacity Storage Unit Device Improved Sensor Array Storage High-capacity Storage Unit Processor Targeting Computer Protection Light Armor Plating Weapon Improved EM Shotgun Energy Gun Improved EM Shotgun Energy Cannon Advanced Beam Cannon Ballistic Gun Improved Assault Rifle Ballistic Cannon Assault Cannon Launcher Grenade Launcher Special Weapon Mining Laser Slashing Weapon Axe Build | -11 -10 -10 -9 -9 -9 ------- Run | Scr Mat Min Mat Min Exi Slots Evolved 2 | . . . 2 . . Power . | . . . . . . Propulsion . | . . . . . . Utility 2 | . . . 2 . . Weapon . | . . . . . . Parts Attached 61 | 6 2 2 45 . 6 Power 4 | 1 . . 3 . . Engine 4 | 1 . . 3 . . Core . | . . . . . . Reactor . | . . . . . . Propulsion 15 | 2 . . 12 . 1 Treads 8 | . . . 7 . 1 Leg 1 | . . . 1 . . Wheel 3 | 2 . . 1 . . Hover . | . . . . . . Flight 3 | . . . 3 . . Utility 21 | 1 1 . 18 . 1 Device 10 | . 1 . 8 . 1 Storage 3 | 1 . . 2 . . Processor 4 | . . . 4 . . Hackware . | . . . . . . Protection 4 | . . . 4 . . Artifact . | . . . . . . Weapon 21 | 2 1 2 12 . 4 Energy Gun 8 | 1 . 1 5 . 1 Energy Cannon 2 | . . . 1 . 1 Ballistic Gun 3 | 1 . . 2 . . Ballistic Cannon 2 | . . . 1 . 1 Launcher 3 | . . 1 1 . 1 Special Weapon 2 | . 1 . 1 . . Impact Weapon . | . . . . . . Slashing Weapon 1 | . . . 1 . . Piercing Weapon . | . . . . . . Special Melee Weapon . | . . . . . . Unidentified Prototypes 3 | . . . 3 . . Parts Lost 17 | . . . 9 . 8 Power 2 | . . . 1 . 1 Propulsion 5 | . . . 2 . 3 Utility 5 | . . . 5 . . Weapon 5 | . . . 1 . 4 Highest Loss Streak 8 | . . . 2 . 8 Average Slot Usage (%) 97 | . 98 100 97 100 90 Engine 11 | . 14 14 10 11 9 Treads 12 | . . . 15 11 10 Wheel 9 | . 28 28 5 11 7 Device 12 | . 12 14 12 11 10 Storage 11 | . 14 14 11 11 11 Processor 11 | . . . 11 22 22 Protection 4 | . . . 6 . . Energy Gun 10 | . 10 2 14 . . Energy Cannon 1 | . . . . 11 9 Ballistic Gun 6 | . 14 14 6 . . Launcher 1 | . . 9 . . . Slashing Weapon 1 | . . . . 11 6 Naked Turns . | . . . . . . Heaviest Build 56 | 12 13 14 56 47 47 Greatest Support 40 | 26 26 26 40 12 12 Greatest Overweight (x) 14 | . . . 7 3 14 Average Overweight (x) 1 | . . . 2 3 3 Largest Inventory Capacity 14 | 6 6 6 14 12 12 Average Capacity 10 | 5 6 6 12 12 12 Most Carried 12 | 6 6 6 12 12 12 Average Carried 10 | 4 5 6 11 11 11 Final Capacity 12 | 6 6 6 12 12 12 Final Carried 12 | 6 6 6 12 12 8 Class Distribution -------------------- 76% | Mutant 23% | Scavenger-Mutant Dominant Class ---------------- Mutant | -10/Materials Mutant | -10/Mines Mutant | -9/Materials Mutant | -9/Mines Mutant | -9/Exiles Resources | -11 -10 -10 -9 -9 -9 ----------- Run | Scr Mat Min Mat Min Exi Matter Collected 1338 | 486 . 85 754 . 13 Remotely . | . . . . . . Salvage Created 1963 | 395 . 21 1501 . 46 Parts 135 | 26 . 10 99 . . Haulers Intercepted 5 | . . . 5 . . Recyclers Shooed . | . . . . . . Parts Field Recycled . | . . . . . . Retrieved Matter . | . . . . . . Parts Self-Destructed . | . . . . . . Prevented . | . . . . . . Kills | -11 -10 -10 -9 -9 -9 ------- Run | Scr Mat Min Mat Min Exi Combat Hostiles Destroyed 40 | . . 6 27 . 7 Guns 24 | . . 2 22 . . Cannons 2 | . . . . . 2 AOE 14 | . . 4 5 . 5 Classes Destroyed 11 | 3 . 1 6 . 1 Worker 5 | 4 . . 1 . . Tunneler 9 | 9 . . . . . Hauler 5 | . . . 5 . . Recycler 1 | 1 . . . . . Operator 3 | . . . 3 . . Watcher 1 | . . . 1 . . Swarmer 9 | . . 6 3 . . Grunt 16 | . . . 16 . . Brawler 1 | . . . 1 . . Sentry 7 | . . . 7 . . Assembled 7 | . . . . . 7 Best Kill Streak 7 | 3 . 3 4 . 7 Combat Bots Only 7 | . . 3 3 . 7 Max Kills in Single Turn 6 | 1 . 2 2 . 6 Gunslinging . | . . . . . . Exploded 5 | . . 2 2 . 5 Melee . | . . . . . . Uniques/NPCs Destroyed . | . . . . . . Combat | -11 -10 -10 -9 -9 -9 -------- Run | Scr Mat Min Mat Min Exi Damage Taken 2440 | 28 . 109 1227 41 1035 Core 414 | . . 10 139 . 265 Absorbed by Shields 93 | . . . 93 . . Core Remaining (%) 98 | 100 . 96 . . . Volleys Fired 178 | 50 2 8 81 . 37 Largest 2 | 2 1 2 2 . 2 Hottest 112 | 60 100 50 100 . 112 Shots Fired 316 | 100 2 9 153 . 52 Gun 247 | 100 . 5 142 . . Cannon 57 | . . . 6 . 51 Launcher 9 | . . 4 4 . 1 Special 3 | . 2 . 1 . . Kinetic 145 | 50 . 5 60 . 30 Thermal 24 | . 2 . 1 . 21 Explosive 9 | . . 4 4 . 1 Electromagnetic 138 | 50 . . 88 . . Robot Hit Streak 19 | 10 . 6 19 . 9 Robot Miss Streak 8 | 8 . 1 8 . 3 Penetration Max . | . . . . . . Secondary Targets 2 | . . . 2 . . Max Gunslinging Chain 1 | . . . 1 . . Shots Hit Robots 210 | 59 . 2 114 . 35 Core Hits 108 | 20 . 6 67 . 15 Critical Hits 4 | . . . 1 . 3 Critical Kills 1 | . . . . . 1 Critical Parts Destroyed 1 | . . . 1 . . Melee Attacks 2 | . . . 2 . . Impact . | . . . . . . Slashing 2 | . . . 2 . . Piercing . | . . . . . . Sneak Attacks . | . . . . . . Combat Hostiles . | . . . . . . Follow-up Attacks . | . . . . . . Damage Inflicted 4038 | 709 . 247 2139 . 943 Guns 2144 | 624 . 16 1504 . . Cannons 731 | . . . 50 . 681 Explosions 1161 | 85 . 231 583 . 262 Melee . | . . . . . . Ramming 2 | . . . 2 . . Kinetic 1212 | 160 . 16 438 . 598 Thermal 589 | 85 . . 421 . 83 Explosive 655 | . . 231 162 . 262 Electromagnetic 1580 | 464 . . 1116 . . Impact . | . . . . . . Slashing . | . . . . . . Piercing . | . . . . . . Highest Corruption 8 | . . . 8 8 8 Average Corruption 6 | . . . 6 8 8 Corruption Purged . | . . . . . . Effects 99 | . . . 79 2 18 Message Errors 21 | . . . 20 . 1 Matter Fused 21 | . . . 18 1 2 Heat Flow Errors 12 | . . . 11 1 . Energy Discharges 12 | . . . 11 . 1 Parts Rejected 1 | . . . . . 1 Data Loss (minor) 6 | . . . 3 . 3 Data Loss (major) 7 | . . . 6 . 1 Misfires 2 | . . . 1 . 1 Targeting Errors 15 | . . . 8 . 7 Weapon Failures 2 | . . . 1 . 1 Overload Shots . | . . . . . . Overflow Damage 66 | 7 . 11 48 . . Projectiles 12 | . . . 12 . . Explosions 54 | 7 . 11 36 . . Melee . | . . . . . . Knockbacks 4 | . . . . . 4 Impact . | . . . . . . Kinetic 4 | . . . . . 4 Secondary . | . . . . . . Self-Inflicted Damage 362 | 28 . 33 254 . 47 Shots 11 | 1 . 2 7 . 1 Rammed 1 | . . . 1 . . Targets Rammed 1 | . . . 1 . . Kicked . | . . . . . . Crushed . | . . . . . . Highest Temperature 382 | 52 20 10 311 150 382 Average Temperature 80 | 24 12 8 69 84 193 Received Heat Transfer 342 | . . 9 333 . . Effects 3 | . . . 2 . 1 Interference 3 | . . . 2 . 1 Siege Activations . | . . . . . . Robots Corrupted . | . . . . . . Combat Hostiles . | . . . . . . Parts Fried 4 | 3 . . 1 . . Impact Corruptions . | . . . . . . Robots Melted . | . . . . . . Combat Hostiles . | . . . . . . Parts Melted 1 | 1 . . . . . Heat Transferred 860 | 150 . . 500 . 210 Parts Sabotaged . | . . . . . . Parts Stolen . | . . . . . . Parts Stripped . | . . . . . . Power Chain Reactions 11 | 3 . . 8 . . Missiles Intercepted . | . . . . . . Alert | -11 -10 -10 -9 -9 -9 ------- Run | Scr Mat Min Mat Min Exi Peak Influence 321 | 70 60 163 321 124 . Average Influence 110 | 33 51 107 123 124 . Maximum Alert Level 1 | . . . 1 . . Low Security (%) 87 | 100 100 100 82 100 . Level 1 12 | . . . 17 . . Level 2 . | . . . . . . Level 3 . | . . . . . . Level 4 . | . . . . . . Level 5 . | . . . . . . High Security . | . . . . . . Max Security . | . . . . . . Squads Dispatched 10 | . 2 . 8 . . Investigation 7 | . 1 . 6 . . Extermination . | . . . . . . Reinforcement 3 | . 1 . 2 . . Assault . | . . . . . . Garrison . | . . . . . . Intercept . | . . . . . . Construction Impeded . | . . . . . . Haulers Reinforced . | . . . . . . Stealth | -11 -10 -10 -9 -9 -9 --------- Run | Scr Mat Min Mat Min Exi Distress Signals 2 | . . . 2 . . Communications Jammed . | . . . . . . Distress Signals . | . . . . . . Times Spotted 66 | . 3 7 45 3 8 Peak Tracking Total 10 | . 2 3 4 4 10 Tactical Retreats 7 | . . . 6 1 . Traps | -11 -10 -10 -9 -9 -9 ------- Run | Scr Mat Min Mat Min Exi Traps Triggered 5 | . 1 . 4 . . Indirectly . | . . . . . . Trap Hack Attempts . | . . . . . . Triggered . | . . . . . . Disarmed . | . . . . . . Reprogrammed . | . . . . . . Reused . | . . . . . . Traps Extracted . | . . . . . . Installed . | . . . . . . Triggered . | . . . . . . Machines | -11 -10 -10 -9 -9 -9 ---------- Run | Scr Mat Min Mat Min Exi Machines Disabled 9 | . . . 5 . 4 Max in Single Turn 2 | . . . 2 . 1 Machines Sabotaged . | . . . . . . Garrisons Compromised . | . . . . . . Overloaded Fab Kills . | . . . . . . Fab Network Shutdowns . | . . . . . . Hacking | -11 -10 -10 -9 -9 -9 --------- Run | Scr Mat Min Mat Min Exi Machines Accessed 17 | . 1 . 15 . 1 Terminals 10 | . 1 . 9 . . Fabricators . | . . . . . . Repair Stations 2 | . . . 2 . . Recycling Units 2 | . . . 2 . . Scanalyzers 2 | . . . 2 . . Garrison Access . | . . . . . . Total Hacks 65 | . 2 . 62 . 1 Successful 46 | . . . 45 . 1 Failed 19 | . 2 . 17 . . Catastrophic 7 | . 1 . 6 . . Database Lockouts . | . . . . . . Manual 28 | . 4 . 23 . 1 Terminals 32 | . 2 . 30 . . Fabricators . | . . . . . . Repair Stations 13 | . . . 13 . . Recycling Units 2 | . . . 2 . . Scanalyzers 17 | . . . 17 . . Garrison Access . | . . . . . . Terminal Hacks 8 | . . . 7 . 1 Prototype ID Bank 2 | . . . 2 . . Branch Access Points 1 | . . . 1 . . Unreport Threat 2 | . . . 2 . . Hauler Manifests 2 | . . . 2 . . EX-Prototype ID Bank 1 | . . . . . 1 Fabricator Hacks . | . . . . . . Repair Station Hacks 12 | . . . 12 . . Scan Component 6 | . . . 6 . . Repair 6 | . . . 6 . . Recycling Unit Hacks 2 | . . . 2 . . Report Inventory 2 | . . . 2 . . Scanalyzer 15 | . . . 15 . . Insert Component 6 | . . . 6 . . Analyze 9 | . . . 9 . . Garrison Access Hacks . | . . . . . . Unauthorized Hacks 21 | . 2 . 19 . . Terminals 9 | . . . 9 . . Botnet 9 | . . . 9 . . Fabricators . | . . . . . . Repair Stations . | . . . . . . Recycling Units . | . . . . . . Scanalyzers . | . . . . . . Garrison Access . | . . . . . . Data Cores Recovered 1 | . . . 1 . . Used . | . . . . . . Hacking Detections 15 | . 2 . 13 . . Full Trace Events 5 | . . . 5 . . Feedback Events . | . . . . . . Feedback Blocked . | . . . . . . Robot Schematics Acquired . | . . . . . . Robots Built . | . . . . . . Matter . | . . . . . . Time . | . . . . . . Total Robot Build Rating . | . . . . . . Part Schematics Acquired 6 | . . . 6 . . Parts Built . | . . . . . . Matter . | . . . . . . Time . | . . . . . . Total Part Build Rating . | . . . . . . Parts Repaired 6 | . . . 6 . . Time 180 | . . . 180 . . Parts Recycled . | . . . . . . Recycled Matter . | . . . . . . Retrieved Matter . | . . . . . . Retrieved Components . | . . . . . . Parts Scanalyzed 6 | . . . 6 . . Part Schematics Acquired 6 | . . . 6 . . Parts Damaged . | . . . . . . Bothacking | -11 -10 -10 -9 -9 -9 ------------ Run | Scr Mat Min Mat Min Exi Used RIF Installer . | . . . . . . Robots Hacked . | . . . . . . Non-combat . | . . . . . . Combat . | . . . . . . Robot Hacks Applied . | . . . . . . Relay Couplers Released . | . . . . . . Robots Rewired . | . . . . . . Allies Hacked . | . . . . . . Hacks Repelled . | . . . . . . Allies | -11 -10 -10 -9 -9 -9 -------- Run | Scr Mat Min Mat Min Exi Total Allies 3 | . . 3 . . . Largest Group 3 | . . 3 . . . Highest-Rated Group 40 | . . 40 . . . Highest-Rated Ally 16 | . . 16 . . . Total Orders . | . . . . . . Ally Attacks 4 | . . 4 . . . Total Damage 51 | . . 51 . . . Kills 2 | . . 2 . . . Allies Corrupted . | . . . . . . Allies Melted . | . . . . . . Intel | -11 -10 -10 -9 -9 -9 ------- Run | Scr Mat Min Mat Min Exi Robot Analysis Total . | . . . . . . Derelict Logs Recovered 2 | . . 1 . 1 . Drone Launches . | . . . . . . Drone Recoveries . | . . . . . . Exploration | -11 -10 -10 -9 -9 -9 ------------- Run | Scr Mat Min Mat Min Exi Turns Passed 4199 | 377 118 513 2722 180 289 Spaces Moved 2597 | 243 117 523 1410 149 155 Core 3 | 2 . . . . 1 Treads 641 | . . . 641 . . Legs 53 | . . . 53 . . Wheels 1897 | 241 117 523 713 149 154 Hover . | . . . . . . Flight 3 | . . . 3 . . Fastest Speed 50 | 50 90 90 90 120 120 Average Speed 126 | 89 90 90 150 120 124 Slowest Speed 750 | 100 90 90 525 120 750 Overloaded Moves . | . . . . . . Propulsion Burnouts . | . . . . . . Robots Hopped . | . . . . . . Cave-ins Triggered . | . . . . . . Exploration Rate (%) 52 | 9 26 99 98 43 41 Regions Visited 5 Branch Regions 3 Pre-discovered Areas . | . . . . . . Known Exits Taken 2 | . . . 1 1 . Unknown Exits Taken 3 | 1 1 1 . . . Scrap Searched 4 | . . 4 . . . Spaces Dug 12 | . 2 7 3 . . Terrain Destroyed 102 | 19 2 33 42 . 6 Melee 2 | . . . 2 . . Projectile 8 | . 2 . 4 . 2 AOE 92 | 19 . 33 36 . 4 Actions | -11 -10 -10 -9 -9 -9 --------- Run | Scr Mat Min Mat Min Exi Total 3185 | 310 123 556 1847 150 199 Wait 279 | . 2 24 252 . 1 Move 2592 | 242 116 522 1409 148 155 Hop . | . . . . . . Pick Up 33 | 9 1 . 22 1 . Fast Attach 32 | 6 . . 25 . 1 Attach 7 | . 1 . 2 . 4 Detach 3 | . . . 3 . . Swap 22 | . 1 2 18 . 1 Drop 32 | 3 . . 28 1 . Fire 178 | 50 2 8 81 . 37 Melee 2 | . . . 2 . . Ram 1 | . . . 1 . . Kick . | . . . . . . Crush . | . . . . . . Escape Stasis . | . . . . . . Rewire 4 | . . . 4 . . Trap . | . . . . . . Miscellaneous . | . . . . . . Route ------- -11/Scrapyard -10/Materials -10/Mines (discovered 2 exits: *Mat x2) -9/Materials (discovered 5 exits: [*Mat x3] / *Min / *Sto) -9/Mines (discovered 2 exits: [*Mat] / *Exi) -9/Exiles History --------- Turn | Location | Event 10 | -11/Scrapyard | Discovered new exit (range 16) 378 | -11/Scrapyard | Entered Materials 379 | -10/Materials | Build established: Mutant 450 | -10/Materials | Discovered new exit (range 6) 496 | -10/Materials | Entered Mines 708 | -10/Mines | Discovered new exit (range 5) 791 | -10/Mines | Discovered new exit (range 10) 882 | -10/Mines | Assisted by bots powering up and referring to "LRC-V3" 1009 | -10/Mines | Entered Materials 1009 | -9/Materials | Evolved 2 slots: Utility x2 1010 | -9/Materials | Identified exit to Storage 1113 | -9/Materials | Identified exit to Mines 1519 | -9/Materials | Repaired Grenade Launcher 1529 | -9/Materials | Build established: Scavenger-Mutant 1546 | -9/Materials | Repaired Lgt. Armor Plating 2010 | -9/Materials | Discovered new exit (range 5) 2153 | -9/Materials | Build established: Mutant 2602 | -9/Materials | Discovered new exit (range 14) 3034 | -9/Materials | Discovered new exit (range 8) 3103 | -9/Materials | Repaired Broken Imp. Ion Engine 3136 | -9/Materials | Repaired Imp. Sensor Array 3164 | -9/Materials | Repaired Lgt. Treads 3191 | -9/Materials | Repaired Lgt. Treads 3731 | -9/Materials | Entered Mines 3755 | -9/Mines | Learned Materials stockpile data 3771 | -9/Mines | Found a hidden stash of uninstalled traps 3825 | -9/Mines | Discovered new exit (range 15) 3830 | -9/Mines | Received a Rocket Launcher from a helpful Derelict 3887 | -9/Mines | Deemed a non-threat by the Exiles lab entrance 3887 | -9/Mines | Discovered new exit (range 5) 3890 | -9/Mines | Identified exit to Exiles 3911 | -9/Mines | Entered Exiles 3940 | -9/Exiles | Met 8R-AWN 3962 | -9/Exiles | Met EX-HEX 4000 | -9/Exiles | Met EX-BIN 4013 | -9/Exiles | Aligned with FarCom system 4015 | -9/Exiles | Given EX-Vault access code 4043 | -9/Exiles | Opened EX-Vault 4071 | -9/Exiles | Attacked by the Exiles 4125 | -9/Exiles | Destroyed 7 combat bots 4139 | -9/Exiles | Core integrity fell below 50% 4184 | -9/Exiles | Core integrity fell below 20% 4200 | -9/Exiles | Destroyed by 8R-AWN with 8R-AWN's Boregun Last Messages --------------- 04166_ Penetrated by HV Slug. 04170_ System corrupted: Assault Cannon targeting data glitched. 04170_ Penetrated by HV Slug. 04178_ System corrupted: Matter fused (-5). 04178_ Penetrated by HV Slug. 04178_ Ion Cannon destroyed. 04178_ Penetrated by HV Slug. 04184_ 8R-AWN suffers critical hit. 04184_ 8R-AWN knocked back. 04186_ System corrupted: Assault Cannon jammed. 04187_ Penetrated by HV Slug. 04187_ Critical hit. 04187_ Lgt. Treads destroyed. 04191_ Penetrated by HV Slug. 04191_ HV Slug penetrates Wall. 04193_ System corrupted: Assault Cannon targeting data glitched. 04195_ Penetrated by HV Slug. 04195_ Critical hit. 04195_ Imp. EM Shotgun destroyed. 04195_ Penetrated by HV Slug. Map ----- +----------------------------------------------------+ | ?????????????????????# X#???????????????????? | | ?????????????????????## ##???????????????????? | | ?????????????????????#X #????????????????????? | | ?????????????????????## #????????????????????? | | ??????????????????????# #????????????????????? | | ??????????????????????# #???###??????????????? | | ??????????????????????# #??"""""#????????????? | | ??????????????????????# ## """#????????????? | | ??????????????????????# X""#????????????? | | ??????????????????????# ## """#????????????? | | ???????????????#####??# #??"""""#????????????? | | ???????????????""""""## #???###??????????????? | | ???????????????"""" #; #????????????????????? | | ??????????????#""X" #????????????????????? | | ??????????????#" #????????????????????? | | ??????????????#" #; #????????????????????? | | ??????????????#""""""?# #?#########??????????? | | ??????????????##"###??# ;?#"""""""#??????????? | | ??????????????? ??????# #?#"""""""#??????????? | | ??????????????????????# # #"""""""#??????????? | | ?????????????????????## #;# " """"#??????????? | | ?????????????????????# """"#??????????? | | ????????????????????## % """#??????????? | | ????????????????????# % """#??????????? | | ????????????????????# % """#??????????? | | ????????????????????# @ """#??????????? | | ????????????????????## """##?????????? | | ?????????????????????# """""?????????? | | ?????????????????????## """##?????????? | | ??????????????????????#" "X" """""?????????? | | ??????????????????????#" """ #??????????? | | ??????????????????????#" """"""""#??????????? | | ?????????????????????##" ###########??????????? | | ????????????????????##"" #????????????????????? | | ???????????????????##"" #????????????????????? | | ????????????????"?""""" g ##???????????????????? | | ????????????????"" " "" ##???#########??????? | | ???????????????""" " #####"""""""""##???? | | ?????????????? " " """ """"##??? | | ????????????? "" " #??? | | ????????????? " """#??? | | ????????????? " "#??? | | ????????????? " "##?? | | ????????????? ""### | | ?????????????? """""" """# | | ?????????????? ######""" "# | | ??????????????? ""#?????#####""" # | | ????????????????????????????##""" | | ?????????????????????????????#"""" | | ?????????????????????????????#"" | +----------------------------------------------------+ Best States ------------- Heat Dissipation 38 Energy Generation 12 Energy Capacity 265 Matter Stores 300 Matter Capacity 300 Sight Range 16 Robot Scan Range 13 Terrain Scan Range 16 Terrain Scan Density 60 Armor Coverage 375 Evasion (%) 42 Targeting Accuracy 5 Recoil Reduction 2 Item Schematics ----------------- Grenade Launcher | -9/Materials | Scanalyzed Hacking Suite | -9/Materials | Scanalyzed VTOL Module | -9/Materials | Scanalyzed Imp. EM Shotgun | -9/Materials | Scanalyzed Ion Engine | -9/Materials | Scanalyzed Assault Cannon | -9/Materials | Scanalyzed Robot Schematics ------------------ None Fabricated ------------ Nothing Alien Tech Used ----------------- None Achievements -------------- None Challenges ------------ None Game ------ Seed ReactiveGravmagApparatus Manual? 0 Play Time 00:41:58 Cumulative 152.5 hours Start 2019.12.24 @ 19:24:45 End 2019.12.24 @ 20:04:12 Sessions 1 Manual Loads 0 Difficulty Rogue Special Mode None Game No. 204 Rogue 193 Adventurer 11 Explorer 0 Win Type - Total 0 Types 0/0/0/0/0/0/0 Lore% 48 Gallery% 59 Achievement% 42 Wizard Run 0 Options --------- ASCII 0 Keyboard 1 Movement Numpad Keybinds 0 Fullscreen 1 Font 12/Terminus Map View 83x54 Tactical HUD 1 Map Filters NONE Filters NONE Steam X RUN: d2b894d6-c89f-40ca-b801-1be8ce272e3c